fUSD/lending_fUSD_20240501
["ID","MTS","AMOUNT","RATE_DAILY","PERIOD"]
[325145665,1714539075428,-500.0,0.0001178,2]
[325145666,1714539075437,-579.02049636,0.0001178,2]
[325145667,1714539075447,-500.0,0.0001178,2]
[325145668,1714539075457,-500.0,0.0001178,2]
[325145669,1714539075467,-626.95296142,0.0001178,2]
[325145670,1714539075476,-500.0,0.0001178,2]
[325145671,1714539075487,-13454.34,0.0001178,2]
[325145672,1714539075496,-500.0,0.0001178,2]
[325145673,1714539075507,-500.0,0.0001178,2]
[325145674,1714539075516,-500.0,0.0001178,2]
[325145675,1714539075526,-276.12,0.0001178,2]
[325145676,1714539075536,-416.80806396,0.0001178,2]
[325145677,1714539075546,-500.0,0.0001178,2]
[325145678,1714539075555,-500.0,0.0001178,2]
[325145679,1714539075564,-500.0,0.0001178,2]
[325145680,1714539075574,-500.0,0.0001178,2]
[325145681,1714539075583,-500.0,0.0001178,2]
[325145682,1714539075592,-500.0,0.0001178,2]
[325145683,1714539075601,-500.0,0.0001178,2]
[325145684,1714539075610,-500.0,0.0001178,2]
[325145685,1714539075619,-500.0,0.0001178,2]
[325145686,1714539075628,-500.0,0.0001178,2]
[325145687,1714539075638,-500.0,0.0001178,2]
[325145688,1714539075647,-500.0,0.0001178,2]
[325145689,1714539075657,-500.0,0.0001178,2]
[325145690,1714539075666,-500.0,0.0001178,2]
[325145691,1714539075676,-500.0,0.0001178,2]
[325145692,1714539075685,-500.0,0.0001178,2]
[325145693,1714539075695,-500.0,0.0001178,2]
[325145694,1714539075704,-500.0,0.0001178,2]
[325145695,1714539075714,-500.0,0.0001178,2]
[325145696,1714539075723,-500.0,0.0001178,2]
[325145697,1714539075733,-500.0,0.0001178,2]
[325145698,1714539075743,-500.0,0.0001178,2]
[325145699,1714539075752,-562.65701521,0.0001178,2]
[325145700,1714539075762,-500.0,0.0001178,2]
[325145701,1714539075772,-500.0,0.0001178,2]
[325145702,1714539075781,-2461.67,0.0001178,2]
[325145703,1714539075790,-500.0,0.0001178,2]
[325145704,1714539075799,-500.0,0.0001178,2]
[325145705,1714539075809,-242.01040478,0.0001178,2]
[325145706,1714539075819,-500.0,0.0001178,2]
[325145707,1714539075828,-500.0,0.0001178,2]
[325145708,1714539075838,-333.99064376,0.0001178,2]
[325145709,1714539075847,-926.91,0.0001178,2]
[325145710,1714539075856,-500.0,0.0001178,2]
[325145711,1714539075866,-1347.73,0.0001178,2]
[325145712,1714539075875,-500.0,0.0001178,2]
[325145713,1714539075885,-500.0,0.0001178,2]
[325145714,1714539075895,-500.0,0.0001178,2]
[325145715,1714539075904,-500.0,0.0001178,2]
[325145716,1714539075913,-500.0,0.0001178,2]
[325145717,1714539075923,-500.0,0.0001178,2]
[325145718,1714539075932,-500.0,0.0001178,2]
[325145719,1714539075941,-9581.25,0.0001178,2]
[325145720,1714539075951,-500.0,0.0001178,2]
[325145721,1714539075960,-500.0,0.0001178,2]
[325145722,1714539075969,-550.55,0.0001178,2]
[325145723,1714539075979,-500.0,0.0001178,2]
[325145724,1714539075988,-500.0,0.0001178,2]
[325145725,1714539075997,-1342.08,0.0001178,2]
[325145726,1714539076007,-500.0,0.0001178,2]
[325145727,1714539076016,-500.0,0.0001178,2]
[325145728,1714539076025,-500.0,0.0001178,2]
[325145729,1714539076035,-500.0,0.0001178,2]
[325145730,1714539076044,-500.0,0.0001178,2]
[325145731,1714539076053,-500.0,0.0001178,2]
[325145732,1714539076063,-500.0,0.0001178,2]
[325145733,1714539076072,-500.0,0.0001178,2]
[325145734,1714539076082,-500.0,0.0001178,2]
[325145735,1714539076092,-500.0,0.0001178,2]
[325145736,1714539076102,-713.05,0.0001178,2]
[325145737,1714539076111,-500.0,0.0001178,2]
[325145738,1714539076121,-500.0,0.0001178,2]
[325145739,1714539076131,-500.0,0.0001178,2]
[325145740,1714539076143,-543.83,0.0001178,2]
[325145741,1714539076153,-500.0,0.0001178,2]
[325145742,1714539076166,-793.24,0.0001178,2]
[325145743,1714539076176,-743.33,0.0001178,2]
[325145744,1714539076185,-500.0,0.0001178,2]
[325145745,1714539076195,-500.0,0.0001178,2]
[325145746,1714539076205,-500.0,0.0001178,2]
[325145747,1714539076215,-500.0,0.0001178,2]
[325145748,1714539076224,-843.66,0.0001178,2]
[325145749,1714539076234,-500.0,0.0001178,2]
[325145750,1714539076243,-500.0,0.0001178,2]
[325145751,1714539076254,-500.0,0.0001178,2]
[325145752,1714539076264,-500.0,0.0001178,2]
[325145753,1714539076273,-489.0,0.0001178,2]
[325145754,1714539076282,-500.0,0.0001178,2]
[325145755,1714539076292,-1583.74,0.0001178,2]
[325145756,1714539076302,-747.89,0.0001178,2]
[325145757,1714539076311,-500.0,0.0001178,2]
[325145758,1714539076320,-500.0,0.0001178,2]
[325145759,1714539076330,-500.0,0.0001178,2]
[325145760,1714539076339,-685.35,0.0001178,2]
[325145761,1714539076348,-500.0,0.0001178,2]
[325145762,1714539076358,-500.0,0.0001178,2]
[325145763,1714539076367,-500.0,0.0001178,2]
[325145764,1714539076376,-500.0,0.0001178,2]
[325145765,1714539076387,-2030.36,0.0001178,2]
[325145766,1714539076400,-500.0,0.0001178,2]
[325145767,1714539076410,-4237.49,0.0001178,2]
[325145768,1714539076419,-500.0,0.0001178,2]
[325145769,1714539076429,-995.71,0.0001178,2]
[325145770,1714539076438,-500.0,0.0001178,2]
[325145771,1714539076448,-788.88,0.0001178,2]
[325145772,1714539076457,-500.0,0.0001178,2]
[325145773,1714539076467,-500.0,0.0001178,2]
[325145774,1714539076477,-701.94,0.0001178,2]
[325145775,1714539076487,-500.0,0.0001178,2]
[325145776,1714539076496,-500.0,0.0001178,2]
[325145777,1714539076506,-500.0,0.0001178,2]
[325145778,1714539076515,-500.0,0.0001178,2]
[325145779,1714539076525,-151.0,0.0001178,2]
[325145780,1714539076534,-524.67,0.0001178,2]
[325145781,1714539076543,-500.0,0.0001178,2]
[325145782,1714539076553,-10385.2,0.0001178,2]
[325145783,1714539076563,-500.0,0.0001178,2]
[325145784,1714539076572,-500.0,0.0001178,2]
[325145785,1714539076582,-340.34501371,0.0001178,2]
[325145786,1714539076592,-1137.24,0.0001178,2]
[325145787,1714539076601,-500.0,0.0001178,2]
[325145788,1714539076610,-1318.2,0.0001178,2]
[325145789,1714539076619,-851.6,0.0001178,2]
[325145790,1714539076628,-723.127736,0.0001178,2]
[325145791,1714539076637,-500.0,0.0001178,2]
[325145792,1714539076648,-500.0,0.0001178,2]
[325145793,1714539076658,-500.0,0.0001178,2]
[325145794,1714539076667,-503.68980678,0.0001178,2]
[325145795,1714539076677,-500.0,0.0001178,2]
[325145796,1714539076687,-593.68,0.0001178,2]
[325145797,1714539076697,-500.0,0.0001178,2]
[325145798,1714539076706,-500.0,0.0001178,2]
[325145799,1714539076716,-723.127736,0.0001178,2]
[325145800,1714539076726,-500.0,0.0001178,2]
[325145801,1714539076736,-10000.0,0.0001178,2]
[325145802,1714539076745,-2573.1,0.0001178,2]
[325145803,1714539076755,-151.0,0.0001178,2]
[325145804,1714539076764,-500.0,0.0001178,2]
[325145805,1714539076773,-500.0,0.0001178,2]
[325145806,1714539076783,-500.0,0.0001178,2]
[325145807,1714539076792,-510.12583748,0.0001178,2]
[325145808,1714539076801,-500.0,0.0001178,2]
[325145809,1714539076810,-10000.0,0.0001178,2]
[325145810,1714539076820,-510.62156042,0.0001178,2]
[325145811,1714539076829,-500.0,0.0001178,2]
[325145812,1714539076839,-1657.89,0.0001178,2]
[325145813,1714539076850,-500.0,0.0001178,2]
[325145814,1714539076859,-500.0,0.0001178,2]
[325145815,1714539076869,-500.0,0.0001178,2]
[325145816,1714539076879,-500.0,0.0001178,2]
[325145817,1714539076890,-155.29644953,0.0001178,2]
[325145818,1714539076901,-500.0,0.0001178,2]
[325145819,1714539076910,-10000.0,0.0001178,2]
[325145820,1714539076920,-151.0,0.0001178,2]
[325145821,1714539076929,-500.0,0.0001178,2]
[325145822,1714539076938,-500.0,0.0001178,2]
[325145823,1714539076948,-500.0,0.0001178,2]
[325145824,1714539076956,-500.0,0.0001178,2]
[325145825,1714539076966,-122.51561458,0.0001178,2]
[325145826,1714539077413,-1345.95438542,0.0001178,2]
[325145827,1714539077423,-539.26,0.0001178,2]
[325145828,1714539077432,-4116.96,0.0001178,2]
[325145829,1714539077442,-162.584186,0.0001178,2]
[325145830,1714539077452,-512.67814992,0.0001178,2]
[325145831,1714539077462,-500.0,0.0001178,2]
[325145832,1714539077471,-488.20307278,0.0001178,2]
[325145833,1714539077481,-505.69085763,0.0001178,2]
[325145834,1714539077490,-150.0,0.0001178,2]
[325145835,1714539077499,-162.584186,0.0001178,2]
[325145836,1714539077510,-500.0,0.0001178,2]
[325145837,1714539077519,-709.49,0.0001178,2]
[325145838,1714539077529,-500.0,0.0001178,2]
[325145839,1714539077538,-500.0,0.0001178,2]
[325145840,1714539077548,-500.0,0.0001178,2]
[325145841,1714539077558,-500.0,0.0001178,2]
[325145842,1714539077568,-500.0,0.0001178,2]
[325145843,1714539077577,-500.0,0.0001178,2]
[325145844,1714539077588,-500.0,0.0001178,2]
[325145845,1714539077598,-510.14930352,0.0001178,2]
[325145846,1714539077607,-500.0,0.0001178,2]
[325145847,1714539077618,-500.0,0.0001178,2]
[325145848,1714539077627,-503.07787525,0.0001178,2]
[325145849,1714539077637,-500.0,0.0001178,2]
[325145850,1714539077646,-507.96962841,0.0001178,2]
[325145851,1714539077656,-500.0,0.0001178,2]
[325145852,1714539077666,-500.0,0.0001178,2]
[325145853,1714539077675,-500.0,0.0001178,2]
[325145854,1714539077684,-500.0,0.0001178,2]
[325145855,1714539077693,-500.0,0.0001178,2]
[325145856,1714539077703,-500.0,0.0001178,2]
[325145857,1714539077713,-500.0,0.0001178,2]
[325145858,1714539077723,-151.0,0.0001178,2]
[325145859,1714539077732,-781.67,0.0001178,2]
[325145860,1714539077742,-500.0,0.0001178,2]
[325145861,1714539077752,-500.0,0.0001178,2]
[325145862,1714539077763,-500.0,0.0001178,2]
[325145863,1714539077772,-827.2,0.0001178,2]
[325145864,1714539077782,-500.0,0.0001178,2]
[325145865,1714539077791,-151.0,0.0001178,2]
[325145866,1714539077801,-508.09330089,0.0001178,2]
[325145867,1714539077811,-557.78,0.0001178,2]
[325145868,1714539077820,-500.0,0.0001178,2]
[325145869,1714539077830,-500.0,0.0001178,2]
[325145870,1714539077839,-510.78362181,0.0001178,2]
[325145871,1714539077849,-500.0,0.0001178,2]
[325145872,1714539077858,-506.69223203,0.0001178,2]
[325145873,1714539077868,-500.0,0.0001178,2]
[325145874,1714539077877,-500.0,0.0001178,2]
[325145875,1714539077886,-500.0,0.0001178,2]
[325145876,1714539077896,-236.15738477,0.0001178,2]
[325145877,1714539077905,-518.82,0.0001178,2]
[325145878,1714539077916,-500.0,0.0001178,2]
[325145879,1714539077926,-151.0,0.0001178,2]
[325145880,1714539077935,-151.0,0.0001178,2]
[325145881,1714539077945,-500.0,0.0001178,2]
[325145882,1714539077955,-500.0,0.0001178,2]
[325145883,1714539077965,-500.0,0.0001178,2]
[325145884,1714539077974,-500.0,0.0001178,2]
[325145885,1714539077983,-500.0,0.0001178,2]
[325145886,1714539077993,-500.0,0.0001178,2]
[325145887,1714539078002,-500.0,0.0001178,2]
[325145888,1714539078012,-6572.96,0.0001178,2]
[325145889,1714539078022,-151.0,0.0001178,2]
[325145890,1714539078031,-500.0,0.0001178,2]
[325145891,1714539078041,-500.0,0.0001178,2]
[325145892,1714539078050,-500.0,0.0001178,2]
[325145893,1714539078059,-500.0,0.0001178,2]
[325145894,1714539078071,-500.0,0.0001178,2]
[325145895,1714539078080,-2184.77,0.0001178,2]
[325145896,1714539078090,-468.852764,0.0001178,2]
[325145897,1714539078099,-876.65,0.0001178,2]
[325145898,1714539078108,-345.94084381,0.0001178,2]
[325145899,1714539078118,-500.0,0.0001178,2]
[325145900,1714539078127,-500.0,0.0001178,2]
[325145901,1714539078136,-151.0,0.0001178,2]
[325145902,1714539078146,-500.0,0.0001178,2]
[325145903,1714539078155,-885.51,0.0001178,2]
[325145904,1714539078169,-468.852764,0.0001178,2]
[325145905,1714539078178,-2195.46,0.0001178,2]
[325145906,1714539078188,-500.0,0.0001178,2]
[325145907,1714539078197,-500.0,0.0001178,2]
[325145908,1714539078208,-500.0,0.0001178,2]
[325145909,1714539078218,-500.0,0.0001178,2]
[325145910,1714539078228,-500.0,0.0001178,2]
[325145911,1714539078238,-500.0,0.0001178,2]
[325145912,1714539078250,-983.52,0.0001178,2]
[325145913,1714539078260,-500.0,0.0001178,2]
[325145914,1714539078443,-1056.57,0.0001178,2]
[325145915,1714539078453,-573.9,0.0001178,2]
[325145916,1714539078463,-500.0,0.0001178,2]
[325145917,1714539078472,-500.0,0.0001178,2]
[325145918,1714539078482,-1366.95,0.0001178,2]
[325145919,1714539078492,-500.0,0.0001178,2]
[325145920,1714539078501,-500.0,0.0001178,2]
[325145921,1714539078511,-318.7436056,0.0001178,2]
[325145922,1714539078520,-500.0,0.0001178,2]
[325145923,1714539078530,-500.0,0.0001178,2]
[325145924,1714539078539,-500.0,0.0001178,2]
[325145925,1714539078548,-500.0,0.0001178,2]
[325145926,1714539078557,-1450.24,0.0001178,2]
[325145927,1714539078567,-500.0,0.0001178,2]
[325145928,1714539078576,-1583.84,0.0001178,2]
[325145929,1714539078586,-500.0,0.0001178,2]
[325145930,1714539078596,-500.0,0.0001178,2]
[325145931,1714539078605,-3095.78,0.0001178,2]
[325145932,1714539078615,-500.0,0.0001178,2]
[325145933,1714539078624,-500.0,0.0001178,2]
[325145934,1714539078633,-500.0,0.0001178,2]
[325145935,1714539078643,-1522.74,0.0001178,2]
[325145936,1714539078653,-503.38892201,0.0001178,2]
[325145937,1714539078663,-500.0,0.0001178,2]
[325145938,1714539078672,-500.0,0.0001178,2]
[325145939,1714539078682,-4304.42,0.0001178,2]
[325145940,1714539078691,-500.0,0.0001178,2]
[325145941,1714539078701,-500.0,0.0001178,2]
[325145942,1714539078710,-500.0,0.0001178,2]
[325145943,1714539078719,-1283.53,0.0001178,2]
[325145944,1714539078728,-500.0,0.0001178,2]
[325145945,1714539078738,-620.12980884,0.0001178,2]
[325145946,1714539078747,-500.0,0.0001178,2]
[325145947,1714539078756,-518.15,0.0001178,2]
[325145948,1714539078766,-500.0,0.0001178,2]
[325145949,1714539078775,-500.0,0.0001178,2]
[325145950,1714539078785,-500.0,0.0001178,2]
[325145951,1714539078794,-1524.5,0.0001178,2]
[325145952,1714539078803,-500.0,0.0001178,2]
[325145953,1714539078813,-506.07969978,0.0001178,2]
[325145954,1714539078822,-926.44,0.0001178,2]
[325145955,1714539078833,-500.0,0.0001178,2]
[325145956,1714539078843,-3114.12,0.0001178,2]
[325145957,1714539078852,-858.81,0.0001178,2]
[325145958,1714539078861,-500.0,0.0001178,2]
[325145959,1714539078871,-232.320715,0.0001178,2]
[325145960,1714539078881,-500.0,0.0001178,2]
[325145961,1714539078890,-500.0,0.0001178,2]
[325145962,1714539078900,-504.4256423,0.0001178,2]
[325145963,1714539078910,-500.0,0.0001178,2]
[325145964,1714539078920,-1103.54,0.0001178,2]
[325145965,1714539078930,-500.0,0.0001178,2]
[325145966,1714539078939,-500.0,0.0001178,2]
[325145967,1714539078949,-500.0,0.0001178,2]
[325145968,1714539078959,-500.0,0.0001178,2]
[325145969,1714539078969,-505.37985412,0.0001178,2]
[325145970,1714539078979,-4158.01,0.0001178,2]
[325145971,1714539078988,-500.0,0.0001178,2]
[325145972,1714539078998,-500.0,0.0001178,2]
[325145973,1714539079008,-500.0,0.0001178,2]
[325145974,1714539079018,-500.0,0.0001178,2]
[325145975,1714539079027,-500.0,0.0001178,2]
[325145976,1714539079037,-500.0,0.0001178,2]
[325145977,1714539079047,-500.0,0.0001178,2]
[325145978,1714539079056,-1216.37,0.0001178,2]
[325145979,1714539079065,-1996.83,0.0001178,2]
[325145980,1714539079075,-151.0,0.0001178,2]
[325145981,1714539079084,-500.0,0.0001178,2]
[325145982,1714539079094,-4065.53,0.0001178,2]
[325145983,1714539079103,-500.0,0.0001178,2]
[325145984,1714539079112,-500.0,0.0001178,2]
[325145985,1714539079121,-3984.81,0.0001178,2]
[325145986,1714539079131,-986.56,0.0001178,2]
[325145987,1714539079140,-500.0,0.0001178,2]
[325145988,1714539079150,-500.0,0.0001178,2]
[325145989,1714539079160,-500.0,0.0001178,2]
[325145990,1714539079173,-427.73450269,0.0001178,2]
[325145991,1714539079182,-500.0,0.0001178,2]
[325145992,1714539079191,-500.0,0.0001178,2]
[325145993,1714539079200,-500.0,0.0001178,2]
[325145994,1714539079210,-2243.06,0.0001178,2]
[325145995,1714539079219,-286.511686,0.0001178,2]
[325145996,1714539079228,-500.0,0.0001178,2]
[325145997,1714539079237,-12714.47,0.0001178,2]
[325145998,1714539079246,-1172.53,0.0001178,2]
[325145999,1714539079255,-500.0,0.0001178,2]
[325146000,1714539079265,-514.71972559,0.0001178,2]
[325146001,1714539079274,-1620.6,0.0001178,2]
[325146002,1714539079284,-500.0,0.0001178,2]
[325146003,1714539079292,-531.76,0.0001178,2]
[325146004,1714539079301,-500.0,0.0001178,2]
[325146005,1714539079311,-500.0,0.0001178,2]
[325146006,1714539079320,-2001.05,0.0001178,2]
[325146007,1714539079329,-500.0,0.0001178,2]
[325146008,1714539079339,-500.0,0.0001178,2]
[325146009,1714539079348,-309.37812662,0.0001178,2]
[325146010,1714539079358,-500.0,0.0001178,2]
[325146011,1714539079367,-500.0,0.0001178,2]
[325146012,1714539079376,-500.0,0.0001178,2]
[325146013,1714539079386,-500.0,0.0001178,2]
[325146014,1714539079397,-500.0,0.0001178,2]
[325146015,1714539079407,-500.0,0.0001178,2]
[325146016,1714539079416,-500.0,0.0001178,2]
[325146017,1714539079426,-500.0,0.0001178,2]
[325146018,1714539079435,-500.0,0.0001178,2]
[325146019,1714539079449,-574.35,0.0001178,2]
[325146020,1714539079459,-500.0,0.0001178,2]
[325146021,1714539079468,-500.0,0.0001178,2]
[325146022,1714539079477,-500.0,0.0001178,2]
[325146023,1714539079486,-541.70855178,0.0001178,2]
[325146024,1714539079495,-759.38,0.0001178,2]
[325146025,1714539079505,-1387.46,0.0001178,2]
[325146026,1714539079514,-151.0,0.0001178,2]
[325146027,1714539079523,-500.0,0.0001178,2]
[325146028,1714539079533,-500.0,0.0001178,2]
[325146029,1714539079542,-325.74967699,0.0001178,2]
[325146030,1714539079552,-1783.2,0.0001178,2]
[325146031,1714539079561,-500.0,0.0001178,2]
[325146032,1714539079570,-367.9110909,0.0001178,2]
[325146033,1714539079579,-500.0,0.0001178,2]
[325146034,1714539079589,-168.42,0.0001178,2]
[325146035,1714539079599,-500.0,0.0001178,2]
[325146036,1714539079609,-500.0,0.0001178,2]
[325146037,1714539079619,-500.0,0.0001178,2]
[325146038,1714539079629,-151.0,0.0001178,2]
[325146039,1714539079638,-500.0,0.0001178,2]
[325146040,1714539079648,-500.0,0.0001178,2]
[325146041,1714539079658,-500.0,0.0001178,2]
[325146042,1714539079667,-188.757448,0.0001178,2]
[325146043,1714539079676,-500.0,0.0001178,2]
[325146044,1714539079686,-500.0,0.0001178,2]
[325146045,1714539079695,-500.0,0.0001178,2]
[325146046,1714539079704,-171.68,0.0001178,2]
[325146047,1714539079714,-895.12,0.0001178,2]
[325146048,1714539079723,-500.0,0.0001178,2]
[325146049,1714539079732,-893.23,0.0001178,2]
[325146050,1714539079741,-5844.28,0.0001178,2]
[325146051,1714539079751,-500.0,0.0001178,2]
[325146052,1714539079759,-1482.64,0.0001178,2]
[325146053,1714539079769,-151.0,0.0001178,2]
[325146054,1714539079778,-529.89,0.0001178,2]
[325146055,1714539079787,-500.0,0.0001178,2]
[325146056,1714539079797,-500.0,0.0001178,2]
[325146057,1714539079806,-503.68191865,0.0001178,2]
[325146058,1714539079815,-500.0,0.0001178,2]
[325146059,1714539079825,-1431.48,0.0001178,2]
[325146060,1714539079834,-250.05035587,0.0001178,2]
[325146061,1714539079844,-550.40409979,0.0001178,2]
[325146062,1714539079853,-500.0,0.0001178,2]
[325146063,1714539079862,-14099.2,0.0001178,2]
[325146064,1714539079872,-500.0,0.0001178,2]
[325146065,1714539079881,-500.0,0.0001178,2]
[325146066,1714539079890,-10000.0,0.00011796,2]
[325146067,1714539079901,-1002.37,0.000118,2]
[325146068,1714539079910,-900.0,0.000118,4]
[325146069,1714539079919,-527.48129462,0.00011823,2]
[325146070,1714539079929,-551.2097505,0.00011823,2]
[325146071,1714539079938,-507.65812628,0.00011823,2]
[325146072,1714539079947,-500.0,0.00011824,2]
[325146073,1714539079957,-500.0,0.00011824,2]
[325146074,1714539079966,-500.0,0.00011824,2]
[325146075,1714539079975,-500.0,0.00011824,2]
[325146076,1714539079985,-500.0,0.00011824,2]
[325146077,1714539079994,-500.0,0.00011824,2]
[325146078,1714539080003,-500.0,0.00011824,2]
[325146079,1714539080012,-500.0,0.00011824,2]
[325146080,1714539080022,-500.0,0.00011824,2]
[325146081,1714539080032,-500.0,0.00011824,2]
[325146082,1714539080041,-500.0,0.00011824,2]
[325146083,1714539080051,-500.0,0.00011824,2]
[325146084,1714539080060,-500.0,0.00011824,2]
[325146085,1714539080069,-500.0,0.00011824,2]
[325146086,1714539080080,-500.0,0.00011824,2]
[325146087,1714539080090,-500.0,0.00011824,2]
[325146088,1714539080099,-500.0,0.00011824,2]
[325146089,1714539080109,-500.0,0.00011824,2]
[325146090,1714539080118,-384.88418833,0.00011824,2]
[325146091,1714539080128,-500.0,0.00011824,2]
[325146092,1714539080137,-500.0,0.00011824,2]
[325146093,1714539080148,-500.0,0.00011824,2]
[325146094,1714539080157,-500.0,0.00011824,2]
[325146095,1714539080168,-500.0,0.00011824,2]
[325146096,1714539080177,-494.0,0.00011824,2]
[325146097,1714539080190,-500.0,0.00011824,2]
[325146098,1714539080199,-756.91,0.00011824,2]
[325146099,1714539080209,-500.0,0.00011824,2]
[325146100,1714539080219,-500.0,0.00011824,2]
[325146101,1714539080228,-500.0,0.00011824,2]
[325146102,1714539080237,-500.0,0.00011824,2]
[325146103,1714539080247,-500.0,0.00011824,2]
[325146104,1714539080258,-500.0,0.00011824,2]
[325146105,1714539080268,-500.0,0.00011824,2]
[325146106,1714539080278,-500.0,0.00011824,2]
[325146107,1714539080287,-500.0,0.00011824,2]
[325146108,1714539080296,-500.0,0.00011824,2]
[325146109,1714539080305,-500.0,0.00011824,2]
[325146110,1714539080315,-500.0,0.00011824,2]
[325146111,1714539080324,-500.0,0.00011824,2]
[325146112,1714539080335,-500.0,0.00011824,2]
[325146113,1714539080344,-500.0,0.00011824,2]
[325146114,1714539080355,-500.0,0.00011824,2]
[325146115,1714539080365,-500.0,0.00011824,2]
[325146116,1714539080375,-500.0,0.00011824,2]
[325146117,1714539080385,-500.0,0.00011824,2]
[325146118,1714539080394,-500.0,0.00011824,2]
[325146119,1714539080403,-500.0,0.00011824,2]
[325146120,1714539080413,-500.0,0.00011824,2]
[325146121,1714539080422,-500.0,0.00011824,2]
[325146122,1714539080432,-500.0,0.00011824,2]
[325146123,1714539080442,-505.6841857,0.00011824,2]
[325146124,1714539080451,-635.9346478,0.00011824,2]
[325146125,1714539080461,-500.0,0.00011824,2]
[325146126,1714539080471,-500.0,0.00011824,2]
[325146127,1714539080481,-500.0,0.00011824,2]
[325146128,1714539080490,-501.23910494,0.00011824,2]
[325146129,1714539080499,-500.0,0.00011824,2]
[325146130,1714539080508,-500.0,0.00011824,2]
[325146131,1714539080518,-500.0,0.00011824,2]
[325146132,1714539080527,-500.0,0.00011824,2]
[325146133,1714539080536,-500.0,0.00011824,2]
[325146134,1714539080545,-500.0,0.00011824,2]
[325146135,1714539080554,-500.0,0.00011824,2]
[325146136,1714539080563,-500.0,0.00011824,2]
[325146137,1714539080572,-500.0,0.00011824,2]
[325146138,1714539080582,-500.0,0.00011824,2]
[325146139,1714539080591,-500.0,0.00011824,2]
[325146140,1714539080600,-500.0,0.00011824,2]
[325146141,1714539080609,-500.0,0.00011824,2]
[325146142,1714539080619,-500.0,0.00011824,2]
[325146143,1714539080628,-500.0,0.00011824,2]
[325146144,1714539080638,-500.0,0.00011824,2]
[325146145,1714539080648,-500.0,0.00011824,2]
[325146146,1714539080657,-500.0,0.00011824,2]
[325146147,1714539080666,-500.0,0.00011824,2]
[325146148,1714539080676,-500.0,0.00011824,2]
[325146149,1714539080685,-500.0,0.00011824,2]
[325146150,1714539080695,-500.0,0.00011824,2]
[325146151,1714539080704,-500.0,0.00011824,2]
[325146152,1714539080713,-500.0,0.00011824,2]
[325146153,1714539080722,-500.0,0.00011824,2]
[325146154,1714539080732,-9112.99669863,0.00011836,2]
[325146155,1714539080742,-1200.0,0.000119,4]
[325146156,1714539080751,-1377.0,0.00011986,2]
[325146157,1714539080763,-15024.6151219,0.00012,2]
[325146158,1714539080773,-409.3828276,0.00012,2]
[325146159,1714539080782,-5000.0,0.00012,2]
[325146160,1714539080792,-1000.0,0.00012,2]
[325146161,1714539080801,-11429.99168288,0.00012,2]
[325146162,1714539080811,-2450.0,0.00012,3]
[325146163,1714539080820,-330.83873912,0.00012,2]
[325146164,1714539080830,-1004.0,0.00012,2]